bitfinex/quotes_ETHUSD_20220115
["timestamp","ask_amount","ask_price","bid_price","bid_amount"]
[1642232130885,0.025571,3313.7,3313.5,2.5806797]
[1642232131085,0.01022985,3313.8,3313.5,2.5806797]
[1642232131285,0.02051585,3313.8,3313.5,2.5806797]
[1642232131485,0.05648985,3313.8,3313.5,2.5806797]
[1642232131686,0.03711085,3313.8,3313.5,2.5806797]
[1642232131886,0.041949,3313.7,3313.5,2.5806797]
[1642232132086,0.03748385,3313.8,3313.5,2.5806797]
[1642232132287,0.01525385,3313.8,3313.5,2.5806797]
[1642232132592,0.04244,3313.7,3313.5,2.5806797]
[1642232132788,0.04244,3313.6,3313.5,2.5806797]
[1642232132988,0.035474,3313.7,3313.5,2.5806797]
[1642232133188,0.00113685,3313.8,3313.5,2.5806797]
[1642232133389,0.01022985,3313.8,3313.5,2.5806797]
[1642232133636,0.00113685,3313.8,3313.5,2.5806797]
[1642232134236,0.01382885,3313.8,3313.5,2.5806797]
[1642232134638,0.036991,3313.6,3313.5,2.5806797]
[1642232134838,0.009093,3313.7,3313.5,2.5806797]
[1642232135039,0.01382885,3313.8,3313.5,2.5806797]
[1642232135341,0.00113685,3313.8,3313.5,2.5806797]
[1642232135540,0.023943,3313.7,3313.5,2.5806797]
[1642232135939,0.00113685,3313.8,3313.5,2.5806797]
[1642232136340,0.01580285,3313.8,3313.5,2.5806797]
[1642232136539,0.00113685,3313.8,3313.5,2.5806797]
[1642232136740,0.028877,3313.7,3313.5,2.5806797]
[1642232137384,0.01022985,3313.8,3313.5,2.5806797]
[1642232137585,0.030574,3313.7,3313.5,2.5806797]
[1642232138186,0.01022985,3313.8,3313.5,2.5806797]
[1642232138586,0.035458,3313.7,3313.5,2.5806797]
[1642232138787,0.01022985,3313.8,3313.5,2.5806797]
[1642232138987,0.00113685,3313.8,3313.5,2.5806797]
[1642232141236,0.01476785,3313.8,3313.5,2.5806797]
[1642232142438,0.059604,3313.7,3313.5,2.5806797]
[1642232142640,0.03532,3313.7,3313.5,2.5806797]
[1642232143039,0.00113685,3313.8,3313.5,2.5806797]
[1642232143839,0.02744,3313.7,3313.5,2.5806797]
[1642232145989,0.01022985,3313.8,3313.5,2.5806797]
[1642232146392,0.01613385,3313.8,3313.5,2.5806797]
[1642232146989,0.030292,3313.7,3313.5,2.5806797]
[1642232147792,0.01613385,3313.8,3313.5,2.5806797]
[1642232149035,0.01613385,3313.8,3313.4,4.3517]
[1642232149233,0.00113685,3313.8,3313.4,4.3517]
[1642232150538,0.036574,3313.7,3313.4,4.3517]
[1642232150733,0.01045385,3313.8,3313.4,4.3517]
[1642232151136,0.031176,3313.7,3313.4,4.3517]
[1642232151334,0.00113685,3313.8,3313.4,4.3517]
[1642232152134,0.009093,3313.9,3313.4,4.3517]
[1642232152389,0.010402,3313.8,3313.4,4.3517]
[1642232152589,0.013174,3313.8,3313.4,4.3517]
[1642232153086,0.009093,3313.9,3313.4,4.3517]
[1642232153488,0.03381185,3313.8,3313.4,4.3517]
[1642232154287,0.029861,3313.7,3313.4,4.3517]
[1642232154486,0.00113685,3313.8,3313.4,4.3517]
[1642232154687,0.04244,3313.6,3313.4,4.3517]
[1642232154888,0.00113685,3313.8,3313.4,4.3517]
[1642232155286,0.01277585,3313.8,3313.4,4.3517]
[1642232155492,0.00113685,3313.8,3313.4,4.3517]
[1642232156536,0.04306285,3313.8,3313.4,4.3517]
[1642232156735,0.01457785,3313.8,3313.4,4.3517]
[1642232157934,0.00113685,3313.8,3313.4,4.3517]
[1642232158437,0.00113685,3313.8,3313.5,0.7544492]
[1642232160087,0.00113685,3313.8,3313.5,18.3744492]
[1642232162790,0.01282785,3313.8,3313.5,18.3744492]
[1642232162990,0.01282785,3313.8,3313.5,17.62]
[1642232163390,0.039264,3313.7,3313.5,17.62]
[1642232163634,0.034371,3313.6,3313.5,17.62]
[1642232163841,0.01022985,3313.8,3313.5,17.62]
[1642232164236,0.00113685,3313.8,3313.5,17.62]
[1642232166541,0.00113685,3313.8,3313.4,21.9717]
[1642232168286,0.04244,3313.7,3313.4,4.3517]
[1642232168488,0.04244,3313.6,3313.4,4.3517]
[1642232168893,0.02349,3313.6,3313.4,4.3517]
[1642232169088,0.03531,3313.5,3313.4,4.3517]
[1642232169288,0.00113685,3313.8,3313.5,0.7544525]
[1642232169489,0.01628385,3313.8,3313.5,18.3744525]
[1642232169690,0.01628385,3313.8,3313.5,0.7544525]
[1642232169893,0.040869,3313.7,3313.5,0.7544525]
[1642232170496,0.040869,3313.7,3313.5,18.3744525]
[1642232170791,0.040869,3313.7,3313.6,2.58055458]
[1642232172035,0.00113685,3313.8,3313.6,2.58055458]
[1642232172336,0.00113685,3313.8,3313.6,6.45138645]
[1642232172834,0.00113685,3313.8,3313.6,2.58055458]
[1642232173235,0.00113685,3313.8,3313.7,2.58055458]
[1642232174437,0.00113685,3313.8,3313.6,2.58055458]
[1642232174890,0.00113685,3313.8,3313.7,2.58055458]
[1642232175085,0.04224185,3313.8,3313.7,2.58055458]
[1642232175484,0.04224185,3313.8,3313.6,6.45138645]
[1642232175685,0.04244,3313.7,3313.6,6.45138645]
[1642232175885,0.01022985,3313.8,3313.6,6.45138645]
[1642232176086,0.045463,3313.7,3313.6,6.45138645]
[1642232176690,0.045463,3313.7,3313.6,2.58055458]
[1642232176887,0.01882,3313.7,3313.6,2.58055458]
[1642232177089,0.00113685,3313.8,3313.6,2.58055458]
[1642232178090,0.00113685,3313.8,3313.6,6.45138724]
[1642232178289,0.00113685,3313.8,3313.6,2.58055458]
[1642232178735,0.00113685,3313.8,3313.6,6.45138724]
[1642232183494,0.009093,3314.0,3313.6,2.58055458]
[1642232183692,0.039735,3314.0,3313.6,2.58055458]
[1642232183894,0.00170527,3313.9,3313.6,2.58055458]
[1642232184094,0.00170527,3313.9,3313.7,2.58055458]
[1642232184294,0.00113685,3313.8,3313.7,2.58055458]
[1642232185097,0.00113685,3313.8,3313.6,2.58055458]
[1642232185598,0.00113685,3313.8,3313.7,2.58055458]
[1642232186438,0.00113685,3313.8,3313.6,2.58055458]
[1642232186638,0.00113685,3313.8,3313.6,6.45138724]
[1642232188039,0.00113685,3313.8,3313.5,3.33499758]
[1642232189141,0.00113685,3313.8,3313.6,2.58055458]
[1642232189892,0.00113685,3313.8,3313.5,6.45138724]
[1642232190689,0.00113685,3313.8,3313.5,2.58055458]
[1642232192592,0.00113685,3313.8,3313.5,20.95500038]
[1642232193193,0.00113685,3313.8,3313.6,6.45138724]
[1642232197140,0.00113685,3313.8,3313.6,24.07138724]
[1642232197398,0.00113685,3313.8,3313.6,26.33443504]
[1642232197593,0.00113685,3313.8,3313.6,8.71443504]
[1642232197791,0.00113685,3313.8,3313.7,6.45138724]
[1642232198595,0.00113685,3313.8,3313.7,2.58055458]
[1642232199192,0.00113685,3313.8,3313.7,6.45138724]
[1642232199193,0.02633985,3313.8,3313.7,6.45138724]
[1642232199393,0.01664085,3313.8,3313.7,6.45138724]
[1642232199600,0.00113685,3313.8,3313.7,24.07138724]
[1642232199999,0.00113685,3313.8,3313.7,20.20055458]
[1642232200695,0.00113685,3313.8,3313.7,24.07138724]
[1642232205490,0.00113685,3313.8,3313.7,24.67138724]
[1642232205892,0.00113685,3313.8,3313.7,6.45138724]
[1642232206794,0.04659985,3313.8,3313.7,6.45138724]
[1642232207292,0.04659985,3313.8,3313.7,2.58055458]
[1642232207692,0.02560385,3313.8,3313.7,2.58055458]
[1642232207895,0.00113685,3313.8,3313.7,2.58055458]
[1642232208554,0.00113685,3313.8,3313.7,2.88055458]
[1642232209137,0.00113685,3313.8,3313.7,0.3]
[1642232209537,0.00113685,3313.8,3313.5,3.18055458]
[1642232209739,0.00113685,3313.8,3313.7,5.03055458]
[1642232210138,0.03009685,3313.8,3313.7,2.88055458]
[1642232210338,0.04659985,3313.8,3313.7,2.88055458]
[1642232210541,0.04659985,3313.8,3313.7,2.58055458]
[1642232211437,0.00113685,3313.8,3313.5,6.45138724]
[1642232211638,0.00113685,3313.8,3313.5,2.88055458]
[1642232211639,0.04244,3313.7,3313.5,2.88055458]
[1642232212290,0.00113685,3313.8,3313.6,2.58055458]
[1642232212490,0.00113685,3313.8,3313.6,2.88055458]
[1642232213895,0.00113685,3313.8,3313.7,4.93055458]
[1642232214093,0.00113685,3313.8,3313.7,5.23055458]
[1642232214694,0.44502135,3314.5,3313.7,5.98493998]
[1642232214900,0.04244,3314.0,3313.7,5.98493998]
[1642232215096,0.009093,3314.1,3313.7,3.63493998]
[1642232215396,0.04244,3313.9,3313.8,2.58055458]
[1642232215598,0.029455,3313.9,3313.8,2.58055458]
[1642232215797,0.00170527,3313.9,3313.8,2.58055458]
[1642232216440,0.03659027,3313.9,3313.8,2.58055458]
[1642232216640,0.02688127,3313.9,3313.8,2.58055458]
[1642232217241,0.00170527,3313.9,3313.8,2.58055458]
[1642232220291,0.05730927,3313.9,3313.8,2.58055458]
[1642232220494,0.04716827,3313.9,3313.8,2.58055458]
[1642232225346,0.02211527,3313.9,3313.8,2.58055458]
[1642232225546,0.00170527,3313.9,3313.8,2.58055458]
[1642232225748,0.02088127,3313.9,3313.8,2.58055458]
[1642232225953,0.06471927,3313.9,3313.8,2.58055458]
[1642232226149,0.04716827,3313.9,3313.8,2.58055458]
[1642232226348,0.00170527,3313.9,3313.8,2.58055458]
[1642232226748,0.00170527,3313.9,3313.8,3.18055458]
[1642232227150,0.00170527,3313.9,3313.8,2.58055458]
[1642232227992,0.00170527,3313.9,3313.8,3.18055458]
[1642232228194,0.00170527,3313.9,3313.8,5.11356721]
[1642232228596,0.00170527,3313.9,3313.8,6.11356721]
[1642232228794,0.00170527,3313.9,3313.8,6.71356721]
[1642232228994,0.00170527,3313.9,3313.8,4.18055458]
[1642232229596,0.00170527,3313.9,3313.8,3.18055458]
[1642232229896,0.00170527,3313.9,3313.8,2.58055458]
[1642232229897,0.04716827,3313.9,3313.8,2.58055458]
[1642232230698,0.08786427,3313.9,3313.8,2.58055458]
[1642232230898,0.04716827,3313.9,3313.8,2.58055458]
[1642232233145,0.00170527,3313.9,3313.8,2.58055458]
[1642232233547,0.03595827,3313.9,3313.8,2.58055458]
[1642232233749,0.04716827,3313.9,3313.8,2.58055458]
[1642232233945,0.00170527,3313.9,3313.8,2.58055458]
[1642232237098,0.00170527,3313.9,3313.8,4.18055458]
[1642232237297,0.00170527,3313.9,3313.8,3.18055458]
[1642232238196,0.00170527,3313.9,3313.8,2.58055458]
[1642232238397,0.04414527,3313.9,3313.8,2.58055458]
[1642232238645,0.02484127,3313.9,3313.8,2.58055458]
[1642232238844,0.00170527,3313.9,3313.8,2.58055458]
[1642232240847,0.00170527,3313.9,3313.8,5.0910191]
[1642232241449,0.00170527,3313.9,3313.8,2.58055458]
[1642232241847,0.01092427,3313.9,3313.8,2.58055458]
[1642232242494,0.00170527,3313.9,3313.8,2.58055458]
[1642232243493,0.00170527,3313.9,3313.8,3.18055458]
[1642232245296,0.00170527,3313.9,3313.8,2.58055458]
[1642232245595,0.00170527,3313.9,3313.8,3.18055458]
[1642232245796,0.009093,3314.1,3313.8,3.18055458]
[1642232246245,0.00227369,3314.0,3313.8,3.18055458]
[1642232246445,0.00227369,3314.0,3313.8,2.58055458]
[1642232246645,0.00170527,3313.9,3313.8,0.6]
[1642232246850,0.00170527,3313.9,3313.7,1.1364]
[1642232247145,0.00113685,3313.8,3313.7,1.1364]
[1642232247345,0.00113685,3313.8,3313.7,3.72197854]
[1642232247746,0.00113685,3313.8,3313.7,3.99151542]
[1642232247946,0.00113685,3313.8,3313.7,5.04583542]
[1642232248346,0.00113685,3313.8,3313.7,3.69151542]
[1642232248546,0.00113685,3313.8,3313.7,3.65904846]
[1642232248746,0.00113685,3313.8,3313.7,1.1364]
[1642232249146,0.02322685,3313.8,3313.7,1.1364]
[1642232249995,0.00113685,3313.8,3313.7,1.1364]
[1642232250395,0.02253185,3313.8,3313.7,1.1364]
[1642232250997,0.60931196,3314.8,3313.8,2.15]
[1642232251396,0.00341054,3314.4,3313.8,2.15]
[1642232251796,0.00284211,3314.3,3313.8,2.15]
[1642232252196,0.00227369,3314.2,3313.8,2.15]
[1642232252602,0.00170527,3314.1,3313.8,2.15]
[1642232252997,0.00113684,3314.0,3313.7,1.1364]
[1642232253397,0.00568423,3314.8,3313.7,1.4364]
[1642232253846,0.00511581,3314.7,3313.7,1.4364]
[1642232254047,0.00511581,3314.7,3313.4,8.22253266]
[1642232254048,1.49780964,3314.4,3313.4,8.22253266]
[1642232254445,0.00284211,3314.3,3313.5,0.00170527]
[1642232254649,0.00284211,3314.3,3314.0,1.39118305]
[1642232254846,0.00227369,3314.2,3314.0,1.39118305]
[1642232255246,0.00170527,3314.1,3314.0,1.39118305]
[1642232262543,0.00170527,3314.1,3314.0,3.97169211]
[1642232263344,0.00170527,3314.1,3314.0,1.39118305]
[1642232263545,0.00170527,3314.1,3313.5,3.76051433]
[1642232263946,0.00113684,3314.0,3313.6,0.00113685]
[1642232264345,1.0,3314.9,3313.6,0.00113685]
[1642232264346,1.00625266,3314.9,3313.6,0.00113685]
[1642232264793,0.00568423,3314.8,3313.6,0.00113685]
[1642232265193,0.00511581,3314.7,3313.6,0.00113685]
[1642232265396,0.00511581,3314.7,3314.1,1.22220297]
[1642232265593,0.00454738,3314.6,3314.1,1.22220297]
[1642232265995,0.00397896,3314.5,3314.1,1.22220297]
[1642232266393,0.00568423,3314.8,3313.6,0.00113685]
[1642232266794,0.00511581,3314.7,3313.6,0.00113685]
[1642232267195,0.00454738,3314.6,3313.6,0.00113685]
[1642232267599,0.00397896,3314.5,3313.7,1.54123764]
[1642232267994,0.00568423,3314.8,3313.7,1.54123764]
[1642232268394,0.00511581,3314.7,3313.7,1.54123764]
[1642232268644,0.00511581,3314.7,3313.7,1.84123764]
[1642232268843,2.9148504,3315.0,3313.7,1.84123764]
[1642232268844,0.00454738,3314.6,3313.7,1.84123764]
[1642232269243,0.00397896,3314.5,3313.7,1.84123764]
[1642232269643,0.00568423,3314.8,3313.7,2.14123764]
[1642232270046,0.00511581,3314.7,3313.8,2.49072902]
[1642232270446,0.00454738,3314.6,3313.9,1.187]
[1642232270745,2.9148504,3315.0,3313.9,1.487]
[1642232270746,0.00397896,3314.5,3313.9,1.487]
[1642232270944,0.00397896,3314.5,3313.9,1.787]
[1642232271145,0.00625266,3314.9,3313.9,1.787]
[1642232271545,0.00568423,3314.8,3313.9,2.5413458]
[1642232271746,0.00568423,3314.8,3313.9,1.9413458]
[1642232271946,0.00511581,3314.7,3313.9,1.187]
[1642232272397,0.00454738,3314.6,3313.9,1.187]
[1642232272802,0.00397896,3314.5,3313.9,1.187]
[1642232273201,0.00568423,3314.8,3313.9,1.187]
[1642232273601,0.00511581,3314.7,3313.9,1.187]
[1642232273999,1.0,3314.9,3313.9,1.187]
[1642232274000,0.00454738,3314.6,3313.9,1.187]
[1642232274399,0.00397896,3314.5,3313.9,1.187]
[1642232274803,1.0,3314.9,3313.9,1.187]
[1642232274804,0.00568423,3314.8,3313.9,1.187]
[1642232275201,0.00511581,3314.7,3313.9,1.187]
[1642232275603,0.00454738,3314.6,3313.9,1.187]
[1642232276055,0.00397896,3314.5,3313.9,1.187]
[1642232276349,0.00568423,3314.8,3313.9,1.187]
[1642232276750,0.00511581,3314.7,3313.9,1.187]
[1642232277150,0.00454738,3314.6,3313.9,1.187]
[1642232277551,0.00397896,3314.5,3313.9,1.187]
[1642232277954,0.00625266,3314.9,3313.9,1.187]
[1642232278351,0.00568423,3314.8,3313.9,1.187]
[1642232278751,0.00511581,3314.7,3313.9,1.187]
[1642232279053,0.00454738,3314.6,3313.9,1.187]
[1642232279352,0.00397896,3314.5,3313.9,1.187]
[1642232279799,1.0,3314.9,3313.9,1.187]
[1642232279800,0.00568423,3314.8,3313.9,1.187]
[1642232280000,0.00568423,3314.8,3314.0,2.58032671]
[1642232280201,0.00511581,3314.7,3314.0,2.58032671]
[1642232280400,0.00511581,3314.7,3314.0,3.89819809]
[1642232280605,0.00454738,3314.6,3314.0,3.89819809]
[1642232281001,0.00397896,3314.5,3314.0,2.58032671]
[1642232281403,1.00625266,3314.9,3314.0,2.58032671]
[1642232281603,1.00625266,3314.9,3314.1,2.58032671]
[1642232281803,0.00568423,3314.8,3314.1,2.58032671]
[1642232282204,0.00511581,3314.7,3314.1,2.58032671]
[1642232282603,0.00454738,3314.6,3314.0,2.58032671]
[1642232283003,0.00397896,3314.5,3314.0,2.58032671]
[1642232283403,0.00625266,3314.9,3314.0,2.58032671]
[1642232283851,0.00568423,3314.8,3314.0,2.58032671]
[1642232284253,0.00511581,3314.7,3314.0,2.58032671]
[1642232284653,0.00511581,3314.7,3313.7,1.54123764]
[1642232284654,0.00454738,3314.6,3313.8,2.58032671]
[1642232285050,0.00397896,3314.5,3313.8,2.58032671]
[1642232285451,0.00625266,3314.9,3313.8,2.58032671]
[1642232285856,0.00568423,3314.8,3313.8,2.58032671]
[1642232286255,0.00511581,3314.7,3313.8,2.58032671]
[1642232286654,0.00454738,3314.6,3313.8,2.58032671]
[1642232287053,0.30714134,3314.8,3313.8,2.58032671]
[1642232287054,0.00397896,3314.5,3313.8,2.58032671]
[1642232287503,0.00511581,3314.7,3313.8,2.58032671]
[1642232287903,0.30714134,3314.8,3313.8,2.58032671]
[1642232287904,0.00454738,3314.6,3313.8,2.58032671]
[1642232288304,0.00397896,3314.5,3313.8,2.58032671]
[1642232288704,0.00511581,3314.7,3313.8,2.58032671]
[1642232289204,0.00454738,3314.6,3313.8,2.58032671]
[1642232289604,0.00397896,3314.5,3313.8,2.58032671]
[1642232290006,0.00511581,3314.7,3313.8,2.58032671]
[1642232290409,0.30714134,3314.8,3313.8,2.58032671]
[1642232290410,1.21479595,3314.0,3313.8,2.58032671]
[1642232291866,1.21479595,3314.0,3313.8,3.7461998]
[1642232292066,0.00511581,3314.7,3313.8,1.16587309]
[1642232292266,0.00511581,3314.7,3313.8,3.63197057]
[1642232292466,0.30714134,3314.8,3313.8,3.63197057]
[1642232292467,0.00454738,3314.6,3313.8,1.16587309]
[1642232292865,0.00397896,3314.5,3313.8,1.16587309]
[1642232293066,1.36379964,3314.2,3313.9,2.58032671]
[1642232293469,0.00170527,3314.1,3313.9,2.58032671]
[1642232293867,0.00113684,3314.0,3313.9,2.58032671]
[1642232294176,0.00170527,3314.0,3313.9,2.58032671]
[1642232303097,0.00170527,3314.0,3313.7,5.03123126]
[1642232303701,0.00170527,3314.0,3313.8,1.54508839]
[1642232303900,0.00170527,3314.0,3313.8,4.1254151]
[1642232304500,0.00170527,3314.0,3313.9,2.58032671]
[1642232308149,0.00170527,3314.0,3313.7,2.58032671]
[1642232308349,0.00170527,3314.0,3313.7,3.68015343]
[1642232308553,0.00170527,3314.0,3313.8,1.26634314]
[1642232309154,0.00170527,3314.0,3313.9,2.58032671]
[1642232315248,0.00170527,3314.0,3313.9,22.88668835]
[1642232315449,0.00170527,3314.0,3313.9,23.18668835]
[1642232315849,0.00170527,3314.0,3313.9,20.80032671]
[1642232316050,0.00170527,3314.0,3313.9,24.67115937]
[1642232316652,0.00170527,3314.0,3313.9,6.45115937]
[1642232316851,0.00170527,3314.0,3313.9,2.58032671]
[1642232317996,0.00170527,3314.0,3313.9,20.50032671]
[1642232318898,0.00170527,3314.0,3313.9,24.37115937]
[1642232319899,0.00170527,3314.0,3313.9,6.75115937]
[1642232320299,0.00170527,3314.0,3313.9,24.37115937]
[1642232320500,0.00170527,3314.0,3313.9,6.75115937]
[1642232320798,0.00170527,3314.0,3313.9,2.58032671]
[1642232321046,0.00170527,3314.0,3313.9,2.88032671]
[1642232321447,0.00170527,3314.0,3313.9,20.50032671]
[1642232322048,0.00170527,3314.0,3313.9,2.88032671]
[1642232322451,0.00170527,3314.0,3313.9,20.50032671]
[1642232322850,0.00170527,3314.0,3313.9,24.37115937]
[1642232323051,0.00170527,3314.0,3313.9,6.75115937]
[1642232324254,0.45385415,3314.5,3313.9,6.75115937]
[1642232324454,0.45385415,3314.5,3313.9,6.45115937]
[1642232324654,0.00341054,3314.4,3313.9,6.45115937]
[1642232324912,0.00341054,3314.4,3313.9,6.75115937]
[1642232325111,0.00284211,3314.3,3314.0,2.58032671]
[1642232325507,0.00227369,3314.2,3314.0,2.58032671]
[1642232326005,0.00170527,3314.1,3314.0,2.58032671]
[1642232327412,0.00170527,3314.1,3314.0,4.96928227]
[1642232327607,0.00170527,3314.1,3314.0,2.38895556]
[1642232328209,0.00170527,3314.1,3313.9,20.20032671]
[1642232328409,0.00170527,3314.1,3313.9,20.50032671]
[1642232328647,0.00113684,3314.0,3313.9,17.92]
[1642232329448,0.00113684,3314.0,3313.9,21.79034486]
[1642232335603,0.00113684,3314.0,3313.9,22.09034486]
[1642232335902,0.45385415,3314.5,3314.2,0.7541865]
[1642232336153,0.45385415,3314.5,3314.3,21.44754581]
[1642232336451,0.0022737,3314.4,3314.3,19.00852874]
[1642232337052,1.8374,3315.8,3314.4,5.7]
[1642232337252,1.8374,3315.8,3314.9,0.011693]
[1642232337451,0.00454739,3315.2,3314.9,0.011693]
[1642232337857,0.00397896,3315.1,3314.9,0.011693]
[1642232338252,1.55776251,3315.4,3314.9,0.011693]
[1642232338253,0.00341054,3315.0,3314.9,0.011693]
[1642232338652,0.00341054,3315.0,3314.9,3.92886262]
[1642232338853,0.45727816,3316.6,3314.9,3.92886262]
[1642232338854,1.0,3316.1,3315.1,17.62]
[1642232339053,0.45727816,3316.6,3315.1,17.62]
[1642232339054,1.51052838,3315.8,3315.2,0.011052]
[1642232339253,1.51052838,3315.8,3315.6,0.011824]
[1642232339455,1.37250683,3315.7,3315.6,0.011824]
[1642232341803,1.37250683,3315.7,3315.1,0.09585161]
[1642232342002,1.37250683,3315.7,3315.2,0.009093]
[1642232342204,0.00341054,3315.6,3315.2,0.009093]
[1642232342605,0.00284212,3315.5,3315.2,0.009093]
[1642232343009,0.00227369,3315.4,3315.2,0.009093]
[1642232343304,0.00170527,3315.3,3315.2,0.009093]
[1642232343856,0.00170527,3315.3,3315.1,0.09585161]
[1642232344251,0.00113685,3315.2,3315.1,0.09585161]
[1642232344452,0.00113685,3315.2,3315.1,2.66215124]
[1642232346454,0.00113685,3315.2,3315.1,0.09585161]
[1642232347056,0.00113685,3315.2,3315.1,2.624454]
[1642232347902,0.00113685,3315.2,3315.1,4.974454]
[1642232349407,0.00113685,3315.2,3315.1,2.624454]
[1642232351051,0.00113685,3315.2,3315.1,20.244454]
[1642232351854,0.00113685,3315.2,3315.1,2.624454]
[1642232357710,0.00113685,3315.2,3315.1,7.024454]
[1642232359055,0.00113685,3315.2,3315.1,24.644454]
[1642232359258,1.5101634,3316.6,3315.2,5.7]
[1642232359457,1.5101634,3316.6,3315.9,0.015326]
[1642232359656,1.5101634,3316.6,3316.5,1.29213841]
[1642232360057,1.51812132,3316.6,3316.5,1.29213841]
[1642232360255,0.00795792,3316.6,3316.5,1.29213841]
[1642232362059,1.33826937,3316.6,3316.5,1.29213841]
[1642232362506,1.33826937,3316.6,3316.0,0.011546]
[1642232362705,1.33826937,3316.6,3315.9,0.015326]
[1642232362905,0.0073895,3316.5,3315.9,0.015326]
[1642232363305,0.00682108,3316.4,3315.9,0.015326]
[1642232363509,0.00682108,3316.4,3316.3,1.35066217]
[1642232363710,1.33031145,3316.6,3316.3,1.35066217]
[1642232364107,0.0073895,3316.5,3316.3,1.35066217]
[1642232364508,0.00682108,3316.4,3316.0,0.009093]
[1642232364908,0.00625265,3316.3,3315.8,5.486]
[1642232365411,0.00568423,3316.2,3315.8,5.486]
[1642232365810,0.00511581,3316.1,3315.8,5.486]
[1642232366057,0.00511581,3316.1,3316.0,1.13334878]
[1642232366258,1.33031145,3316.6,3316.0,1.13334878]
[1642232366656,0.0073895,3316.5,3316.0,1.13334878]
[1642232367058,0.00682108,3316.4,3316.0,1.13334878]
[1642232367457,0.00625265,3316.3,3316.0,1.13334878]
[1642232367857,0.00568423,3316.2,3316.0,1.13334878]
[1642232368257,0.00511581,3316.1,3316.0,1.13334878]
[1642232369813,0.00511581,3316.1,3316.0,3.71250428]
[1642232378109,2.78009628,3317.2,3316.1,2.15]
[1642232378309,3.08009628,3317.2,3316.1,0.010102]
[1642232378508,1.23289211,3316.9,3316.1,0.010102]
[1642232378710,1.53289211,3316.9,3316.2,2.5791555]
[1642232378908,0.00397896,3316.8,3316.2,2.5791555]
[1642232379311,0.00341054,3316.7,3316.1,0.010102]
[1642232379709,0.00284211,3316.6,3316.1,0.010102]
[1642232379907,0.00284211,3316.6,3316.0,1.14318978]
[1642232380108,0.00227369,3316.5,3316.2,0.010821]
[1642232380609,0.00170527,3316.4,3316.2,0.010821]
[1642232380809,0.00170527,3316.4,3316.0,1.14318978]
[1642232381060,0.00113684,3316.3,3316.0,1.14318978]
[1642232381464,0.00397896,3316.8,3316.0,1.14318978]
[1642232381864,0.00341054,3316.7,3316.0,1.14318978]
[1642232382063,0.00341054,3316.7,3316.1,0.011696]
[1642232382262,1.23289211,3316.9,3316.1,2.59082197]
[1642232382263,0.00284211,3316.6,3316.1,2.59082197]
[1642232382661,0.00227369,3316.5,3316.1,2.59082197]
[1642232383061,0.00170527,3316.4,3316.1,2.59082197]
[1642232383463,0.00113684,3316.3,3316.1,0.011696]
[1642232383862,0.00397896,3316.8,3316.1,0.011696]
[1642232384061,0.00397896,3316.8,3316.2,2.57912597]
[1642232384262,0.00341054,3316.7,3316.2,2.57912597]
[1642232384662,0.00284211,3316.6,3316.2,2.57912597]
[1642232385111,0.00227369,3316.5,3316.2,2.57912597]
[1642232385511,0.00170527,3316.4,3316.2,2.57912597]
[1642232386012,0.00113684,3316.3,3316.2,2.57912597]
[1642232388758,0.00113684,3316.3,3316.1,0.011696]
[1642232391563,0.00113684,3316.3,3316.0,1.14318978]
[1642232401411,0.00113684,3316.3,3316.1,2.57898338]
[1642232411866,0.00113684,3316.3,3316.2,3.69697704]
[1642232412064,0.00113684,3316.3,3316.2,2.69197704]
[1642232412662,0.00113684,3316.3,3316.2,1.145]
[1642232413564,0.00113684,3316.3,3316.2,3.72398338]
[1642232414165,0.00113684,3316.3,3316.2,5.06661935]
[1642232414564,0.00113684,3316.3,3316.2,5.07594035]
[1642232416414,1.0,3317.1,3316.2,5.07594035]
[1642232416714,0.00511581,3317.0,3316.2,5.07594035]
[1642232417115,0.00454738,3316.9,3316.2,5.07594035]
[1642232417414,0.00397896,3316.8,3316.2,3.73330438]
[1642232417616,0.00397896,3316.8,3316.3,2.57898338]
[1642232417814,0.00341054,3316.7,3316.3,2.57898338]
[1642232418213,0.00284211,3316.6,3316.3,2.57898338]
[1642232418667,0.00227369,3316.5,3316.3,2.57898338]
[1642232419066,0.00170527,3316.4,3316.3,2.57898338]
[1642232429570,0.00170527,3316.4,3316.3,2.58854338]
[1642232431517,0.00170527,3316.4,3316.3,2.57898338]
[1642232431719,0.00170527,3316.4,3316.3,2.58867838]
[1642232436096,0.00170527,3316.4,3316.3,2.57898338]
[1642232443565,0.00170527,3316.4,3316.0,2.54150279]
[1642232443967,0.00113684,3316.3,3316.1,0.011891]
[1642232444364,0.00113684,3316.3,3316.1,2.59086651]
[1642232445412,0.00113684,3316.3,3316.2,2.59103251]
[1642232446717,0.00113684,3316.3,3316.2,2.57897551]
[1642232447912,0.00113684,3316.3,3316.0,1.15153478]
[1642232448313,0.00113684,3316.3,3316.1,0.013123]
[1642232448561,0.00113684,3316.3,3316.2,0.012297]
[1642232448761,0.00113684,3316.3,3316.2,1.42587953]
[1642232449060,0.00113684,3316.3,3316.2,1.42356753]
[1642232449263,0.00113684,3316.3,3316.2,1.41358253]
[1642232450460,0.00113684,3316.3,3316.2,3.94245985]
[1642232451662,0.00113684,3316.3,3316.2,2.57887732]
[1642232453013,0.00113684,3316.3,3316.1,1.46666143]
[1642232453414,0.00113684,3316.3,3316.1,1.46770243]
[1642232453815,0.00113684,3316.3,3316.1,1.41770243]
[1642232455018,0.00113684,3316.3,3316.2,2.57885323]
[1642232456965,0.00113684,3316.3,3316.2,2.52885323]
[1642232457365,0.00113684,3316.3,3316.1,0.010134]
[1642232460312,0.00113684,3316.3,3316.2,0.0077974]
[1642232461911,0.00113684,3316.3,3316.1,0.010134]
[1642232461912,0.00113684,3316.3,3316.0,1.10128018]
[1642232468718,0.00113684,3316.3,3316.1,1.4773397]
[1642232472766,0.00113684,3316.3,3316.0,1.10128018]
[1642232475815,2.31867108,3316.6,3316.0,1.10128018]
[1642232476117,0.00227369,3316.5,3316.0,1.10128018]
[1642232476515,0.00170527,3316.4,3316.0,1.10128018]
[1642232476715,0.75416,3316.3,3316.0,1.10128018]
[1642232476916,0.75529684,3316.3,3316.0,1.10128018]
[1642232479365,0.00113684,3316.3,3316.0,1.10128018]
[1642232480765,0.75529684,3316.3,3316.0,1.10128018]
[1642232481565,0.75529684,3316.3,3315.8,1.1904]
[1642232481766,0.30113684,3316.3,3315.7,4.1551]
[1642232481967,0.75422,3316.0,3315.9,0.00113685]
[1642232482422,1.05422,3316.0,3315.9,0.00113685]
[1642232482624,1.35422,3316.0,3315.4,0.00397897]
[1642232482820,1.35422,3316.0,3315.3,1.42457794]
[1642232483023,1.11534453,3315.6,3315.4,0.00397897]
[1642232484221,0.33481819,3315.7,3315.4,0.00397897]
[1642232484421,0.3,3315.6,3315.4,0.00397897]